fUSD/lending_fUSD_20240223
["ID","MTS","AMOUNT","RATE_DAILY","PERIOD"]
[314997738,1708721433602,-152.0,0.0003489,2]
[314997739,1708721433612,-414.66,0.0003491,2]
[314997740,1708721433621,-18310.7421046,0.00034921,7]
[314997741,1708721433631,-38372.566303,0.00034931,2]
[314997742,1708721433640,-2508.457953,0.00034931,2]
[314997743,1708721433652,-851.013529,0.00034931,2]
[314997744,1708721433662,-3416.882636,0.00034931,2]
[314997745,1708721433672,-1596.291424,0.00034931,2]
[314997746,1708721433682,-620.52,0.00034931,4]
[314997747,1708721433691,-1140.20816,0.00034931,2]
[314997748,1708721433701,-272.43157707,0.0003495,2]
[314997749,1708721433710,-4823.81304673,0.00034972,2]
[314997750,1708721433720,-1470.28505297,0.0003499,8]
[314997754,1708721437982,-150.0,0.00032325,2]
[314997755,1708721437992,-158.68,0.0003499,8]
[314997781,1708721440496,-2718.55011088,0.0003499,8]
[314997785,1708721444411,-230.17036231,0.0003499,8]
[314997787,1708721444421,-150.0,0.0003499,7]
[314997788,1708721444431,-500.0,0.00034999,4]
[314997789,1708721444440,-125.667676,0.00034999,4]
[314997810,1708721444884,-374.332324,0.00034999,4]
[314997812,1708721444893,-344.80025657,0.00034999,4]
[314997813,1708721444902,-500.0,0.00034999,4]
[314997814,1708721444912,-429.12675544,0.00034999,4]
[314997815,1708721444923,-74.70062045,0.00034999,4]
[314997816,1708721444933,-500.0,0.00034999,4]
[314997817,1708721444942,-442.98238135,0.00035,4]
[314997818,1708721444972,-143.92736939,0.00035,4]
[314997819,1708721444982,-229.20433756,0.00035,7]
[314997820,1708721444991,-516.65452876,0.00035,3]
[314997821,1708721445003,-475.33246739,0.00035,3]
[314997822,1708721445015,-8.01300385,0.00035,3]
[314997823,1708721445024,-836.60016149,0.00035,2]
[314997824,1708721445035,-2581.19425263,0.00035,2]
[314997825,1708721445807,-211.02707745,0.00035,2]
[314997826,1708721445817,-328.0,0.00035,2]
[314997827,1708721445827,-155.64218075,0.00035051,7]
[314997828,1708721445836,-588.10909295,0.00035058,8]
[314997829,1708721445848,-500.0,0.00035058,8]
[314997830,1708721445975,-1338.09566717,0.00035058,8]
[314997831,1708721445988,-358.28308916,0.00035058,8]
[314997832,1708721445999,-2552.5,0.00035058,8]
[314997833,1708721446091,-154.99,0.00032877,2]
[314997834,1708721446100,-22129.12530772,0.00035058,8]
[314997835,1708721446110,-151.0,0.00035061,2]
[314997836,1708721446119,-151.0,0.00035061,2]
[314997837,1708721446128,-5655.18759748,0.00035067,4]
[314997838,1708721446137,-6795.82715909,0.00035068,2]
[314997839,1708721446162,-41169.88071991,0.00035068,2]
[314997840,1708721446172,-3135.572441,0.00035068,2]
[314997841,1708721446181,-1063.766912,0.00035068,2]
[314997842,1708721446191,-4271.103295,0.00035068,2]
[314997843,1708721446200,-1995.36428,0.00035068,2]
[314997844,1708721446209,-1425.2602,0.00035068,2]
[314997845,1708721446218,-328.0,0.00035068,2]
[314997846,1708721446227,-207.33,0.0003507,2]
[314997847,1708721446237,-9155.37105232,0.0003509,8]
[314997848,1708721446246,-1000.0,0.00035093,2]
[314997849,1708721446256,-1724.09876794,0.00035095,2]
[314997850,1708721446266,-609.7,0.000351,2]
[314997852,1708721446275,-609.7,0.000351,2]
[314997854,1708721446285,-609.7,0.000351,2]
[314997856,1708721446294,-609.7,0.000351,2]
[314997858,1708721446303,-609.7,0.000351,2]
[314997859,1708721446312,-609.7,0.000351,2]
[314997860,1708721446322,-609.7,0.000351,2]
[314997861,1708721446332,-609.7,0.000351,2]
[314997862,1708721446341,-609.7,0.000351,2]
[314997863,1708721446350,-609.7,0.000351,2]
[314997864,1708721446359,-609.7,0.000351,2]
[314997865,1708721446368,-609.7,0.000351,2]
[314997866,1708721446378,-609.7,0.000351,2]
[314997867,1708721446387,-609.7,0.000351,2]
[314997868,1708721446396,-609.7,0.000351,2]
[314997869,1708721446406,-609.7,0.000351,2]
[314997870,1708721446415,-609.7,0.000351,2]
[314997871,1708721446424,-609.7,0.000351,2]
[314997872,1708721446433,-609.7,0.000351,2]
[314997873,1708721446443,-609.7,0.000351,2]
[314997874,1708721446452,-5021.957705,0.000351,2]
[314997875,1708721446461,-430.7049708,0.00035127,10]
[314997876,1708721446471,-172.6258371,0.0003519,7]
[314997877,1708721446481,-151.0,0.00035192,4]
[314997878,1708721446490,-181.83120229,0.00035242,2]
[314997879,1708721446499,-4823.81304673,0.00035285,2]
[314997880,1708721446508,-249.88,0.00035312,2]
[314997881,1708721446517,-188.61746284,0.00035322,2]
[314997882,1708721446526,-150.0,0.00035325,2]
[314997883,1708721446535,-4577.68552616,0.00035328,8]
[314997884,1708721446545,-41199.1697354,0.00035332,8]
[314997885,1708721446554,-67151.991031,0.00035342,2]
[314997886,1708721446563,-4389.801417,0.00035342,2]
[314997887,1708721446573,-1489.273677,0.00035342,2]
[314997888,1708721446581,-5979.544614,0.00035342,2]
[314997889,1708721446590,-2793.509993,0.00035342,2]
[314997890,1708721446600,-1995.364281,0.00035342,2]
[314997891,1708721446610,-328.0,0.00035342,2]
[314997892,1708721446619,-150.0,0.00035472,2]
[314997893,1708721446628,-514.28201034,0.00035489,2]
[314997894,1708721446638,-177.11808664,0.00035539,3]
[314997895,1708721446647,-45776.8552616,0.00035579,9]
[314997896,1708721446658,-76745.132607,0.00035589,2]
[314997897,1708721446668,-5016.915906,0.00035589,2]
[314997898,1708721446677,-1702.027059,0.00035589,2]
[314997899,1708721446686,-6833.765273,0.00035589,2]
[314997900,1708721446695,-3192.582849,0.00035589,2]
[314997901,1708721446705,-2280.416321,0.00035589,2]
[314997902,1708721446714,-4577.68552616,0.0003559,9]
[314997903,1708721446723,-4823.81304673,0.00035599,2]
[314997904,1708721446733,-8000.0,0.000356,2]
[314997905,1708721446743,-328.0,0.00035616,2]
[314997906,1708721446753,-4577.68552616,0.00035788,9]
[314997907,1708721446762,-10000.0,0.00035798,2]
[314997908,1708721446772,-156.30526137,0.0003583,7]
[314997909,1708721446780,-2000.0,0.000359,2]
[314997910,1708721446790,-151.0,0.0003591,2]
[314997911,1708721446798,-4823.81304673,0.00035912,2]
[314997912,1708721446808,-4577.68552616,0.00035971,9]
[314997913,1708721446819,-4577.68552616,0.00035983,9]
[314997914,1708721446829,-155.52882849,0.00035989,4]
[314997915,1708721446838,-4493.63,0.0003599,2]
[314997916,1708721446848,-5800.0,0.00035993,2]
[314997917,1708721446858,-272.43157707,0.00036025,2]
[314997918,1708721446867,-633.86,0.00036054,2]
[314997919,1708721446877,-1397.17,0.00036116,2]
[314997920,1708721446887,-1724.09876794,0.0003621,2]
[314997921,1708721446896,-4823.81304673,0.00036226,2]
[314997922,1708721446906,-328.0,0.00036247,2]
[314997923,1708721446916,-152.0,0.0003626,7]
[314997924,1708721446925,-1602.84508431,0.00036301,30]
[314997925,1708721446935,-150.0,0.00036337,2]
[314997926,1708721446945,-195.0,0.0003651,5]
[314997927,1708721446954,-156.30526137,0.00036513,7]
[314997928,1708721446964,-4823.81304673,0.00036539,2]
[314997929,1708721446974,-185.00317853,0.00036559,7]
[314997930,1708721446983,-272.43157707,0.00036563,2]
[314997931,1708721446993,-4577.68552616,0.00036569,10]
[314997932,1708721447003,-3628.82149147,0.00036579,2]
[314997933,1708721447012,-4577.68552616,0.0003659,10]
[314997934,1708721447022,-609.7,0.000366,3]
[314997935,1708721447032,-609.7,0.000366,3]
[314997936,1708721447042,-609.7,0.000366,3]
[314997937,1708721447051,-609.7,0.000366,3]
[314997938,1708721447061,-609.7,0.000366,3]
[314997939,1708721447072,-609.7,0.000366,3]
[314997940,1708721447082,-609.7,0.000366,3]
[314997941,1708721447091,-609.7,0.000366,3]
[314997942,1708721447101,-609.7,0.000366,3]
[314997943,1708721447111,-609.7,0.000366,3]
[314997944,1708721447120,-609.7,0.000366,3]
[314997945,1708721447130,-609.7,0.000366,3]
[314997946,1708721447139,-609.7,0.000366,3]
[314997947,1708721447149,-609.7,0.000366,3]
[314997948,1708721447158,-609.7,0.000366,3]
[314997949,1708721447167,-609.7,0.000366,3]
[314997950,1708721447177,-609.7,0.000366,3]
[314997951,1708721447188,-609.7,0.000366,3]
[314997952,1708721447197,-609.7,0.000366,3]
[314997953,1708721447207,-609.7,0.000366,3]
[314997954,1708721447216,-9155.37105232,0.00036754,10]
[314997955,1708721447225,-9929.7498,0.00036764,2]
[314997956,1708721447235,-3160.0913,0.00036764,2]
[314997957,1708721447244,-4823.81304673,0.00036853,2]
[314997958,1708721447253,-152.65575181,0.000369,2]
[314997959,1708721447262,-150.18,0.00036912,2]
[314997960,1708721447271,-153.31768893,0.0003692,7]
[314997961,1708721447280,-181.83120229,0.00036985,2]
[314997962,1708721447289,-500.0,0.00036985,10]
[314997963,1708721447299,-666.0,0.00036986,2]
[314997964,1708721447308,-4577.68552616,0.0003699,10]
[314997965,1708721447317,-1050.0,0.00037,3]
[314997966,1708721447326,-177.74,0.00037,2]
[314997967,1708721447335,-4938.0,0.00037,2]
[314997968,1708721447344,-4577.68552616,0.00037065,10]
[314997969,1708721447354,-10000.0,0.00037075,2]
[314997970,1708721447363,-272.43157707,0.000371,2]
[314997971,1708721447372,-155.64218075,0.00037119,7]
[314997972,1708721447382,-4823.81304673,0.00037166,2]
[314997973,1708721447391,-150.0,0.00037203,2]
[314997974,1708721447400,-204.0,0.00037265,21]
[314997975,1708721447410,-4577.68552616,0.00037312,10]
[314997976,1708721447419,-1724.09876794,0.00037325,2]
[314997977,1708721447428,-156.30526137,0.00037359,7]
[314997978,1708721447437,-207.33,0.000374,2]
[314997979,1708721447447,-185.00317853,0.0003747,7]
[314997980,1708721447456,-4823.81304673,0.0003748,2]
[314997981,1708721447465,-355.04,0.00037548,2]
[314997982,1708721447476,-185.00317854,0.00037572,7]
[314997983,1708721447486,-152.0,0.0003763,7]
[314997984,1708721447495,-272.43157707,0.00037638,2]
[314997985,1708721447504,-180.0,0.00037671,2]
[314997986,1708721447513,-249.88,0.00037747,2]
[314997987,1708721447523,-1397.17,0.0003776,2]
[314997988,1708721447532,-4823.81304673,0.00037793,2]
[314997989,1708721447542,-152.0,0.00037797,4]
[314997990,1708721447551,-199.11377918,0.00037815,11]
[314997991,1708721447561,-1371.58122291,0.00037864,2]
[314997992,1708721447571,-13756.99356954,0.0003789,10]
[314997993,1708721470311,10684.71392687,0.00023,2]
[314997994,1708721470337,48283.8972613,0.00023,2]
[314997995,1708721470364,54325.0,0.00023,2]
[314997996,1708721470389,8500887.75811675,0.00023,2]
[314997997,1708721509480,150.0,0.0002,2]
[314997998,1708721509502,137.41743235,0.0002,2]
[314997999,1708721515099,150.0,0.0002276,2]
[314998000,1708721515120,7027.16082688,0.0002276,2]
[314998001,1708721596324,150.0,0.0001305,2]
[314998002,1708721596344,61.52038115,0.0001305,2]
[314998003,1708721628923,150.0,0.000142,2]
[314998004,1708721633662,414107.25188658,0.00023,2]
[314998005,1708721650860,150.0,0.0002,2]
[314998006,1708721650882,150.0,0.0002,2]
[314998007,1708721650908,150.0,0.0002,2]
[314998008,1708721650928,150.0,0.0002,2]
[314998009,1708721650949,108.71379024,0.0002,2]
[314998011,1708722334445,204.0,0.00022897,2]
[314998029,1708722632154,-282.3492782,0.000238,2]
[314998030,1708722632163,-750.0,0.00025,3]
[314998031,1708722632173,-625.4,0.00025282,2]
[314998032,1708722632182,-155.0,0.00026503,2]
[314998033,1708722632191,-192.44125277,0.00026692,2]
[314998034,1708722632202,-15671.28819787,0.00026692,2]
[314998035,1708722632211,-518.79,0.00026931,2]
[314998036,1708722632220,-150.0,0.00026976,2]
[314998037,1708722632230,-800.0,0.00027,3]
[314998038,1708722632239,-204.0,0.0002702,8]
[314998039,1708722632248,-499.99,0.0002702,2]
[314998040,1708722632257,-23900.0,0.00027026,2]
[314998041,1708722632266,-206.2992827,0.000271,2]
[314998042,1708722632276,-232.86,0.000272,2]
[314998043,1708722632285,-206.29928259,0.00027514,2]
[314998044,1708722632295,-625.4,0.00027546,2]
[314998045,1708722632304,-347.778,0.000277,2]
[314998046,1708722632313,-150.0,0.00027799,2]
[314998047,1708722632323,-855.7839,0.000278,2]
[314998048,1708722632332,-6430.692,0.000278,2]
[314998049,1708722632342,-1000.0,0.000278,2]
[314998050,1708722632351,-415.01223825,0.00027898,2]
[314998051,1708722632361,-485.73381817,0.00027898,2]
[314998052,1708722632370,-213.08384221,0.00027898,2]
[314998053,1708722632379,-500.0,0.00027899,2]
[314998054,1708722632388,-500.0,0.00027899,2]
[314998055,1708722632398,-500.0,0.00027899,2]
[314998056,1708722632407,-500.0,0.00027899,2]
[314998057,1708722632417,-500.0,0.00027899,2]
[314998058,1708722632426,-500.0,0.00027899,2]
[314998059,1708722632436,-500.0,0.00027899,2]
[314998060,1708722632445,-500.0,0.00027899,2]
[314998061,1708722632454,-210323.87917982,0.000279,2]
[314998063,1708722632464,-206.29928259,0.00027928,2]
[314998065,1708722632473,-500.0,0.00028036,2]
[314998067,1708722632482,-500.0,0.00028036,2]
[314998069,1708722632491,-500.0,0.00028036,2]
[314998071,1708722632500,-500.0,0.00028036,2]
[314998073,1708722632508,-500.0,0.00028036,2]
[314998075,1708722632517,-500.0,0.00028036,2]
[314998077,1708722632527,-500.0,0.00028036,2]
[314998079,1708722632536,-2000.0,0.00028061,2]
[314998081,1708722632544,-468.68,0.00028096,2]
[314998083,1708722632553,-250.0,0.00028109,2]
[314998085,1708722632562,-500.0,0.00028173,2]
[314998087,1708722632572,-500.0,0.00028173,2]
[314998089,1708722632581,-500.0,0.00028173,2]
[314998091,1708722632590,-500.0,0.00028173,2]
[314998093,1708722632599,-500.0,0.00028173,2]
[314998095,1708722632608,-500.0,0.00028173,2]
[314998097,1708722632616,-500.0,0.00028173,2]
[314998099,1708722632625,-555.84,0.00028192,2]
[314998101,1708722632634,-162.56,0.00028265,2]
[314998103,1708722632643,-272.87,0.000283,2]
[314998105,1708722632652,-500.0,0.00028305,2]
[314998107,1708722632661,-500.0,0.00028305,2]
[314998109,1708722632670,-500.0,0.00028305,2]
[314998111,1708722632680,-500.0,0.00028305,2]
[314998113,1708722632689,-596.45,0.00028305,2]
[314998115,1708722632697,-500.0,0.00028305,2]
[314998117,1708722632706,-500.0,0.00028305,2]
[314998119,1708722632715,-500.0,0.00028305,2]
[314998121,1708722632724,-500.0,0.00028305,2]
[314998123,1708722632733,-500.0,0.00028305,2]
[314998125,1708722632742,-500.0,0.00028305,2]
[314998127,1708722632751,-500.0,0.00028305,2]
[314998129,1708722632760,-500.0,0.00028305,2]
[314998131,1708722632770,-500.0,0.00028305,2]
[314998133,1708722632778,-500.0,0.00028305,2]
[314998135,1708722632787,-500.0,0.00028305,2]
[314998137,1708722632797,-480.23171651,0.00028305,2]
[314998139,1708722632807,-500.0,0.0002831,2]
[314998141,1708722632816,-500.0,0.0002831,2]
[314998143,1708722632826,-500.0,0.0002831,2]
[314998145,1708722632835,-500.0,0.0002831,2]
[314998147,1708722632843,-500.0,0.0002831,2]
[314998149,1708722632853,-500.0,0.0002831,2]
[314998151,1708722632862,-206.29928259,0.00028342,2]
[314998153,1708722632871,-500.0,0.00028442,2]
[314998155,1708722632881,-500.0,0.00028442,2]
[314998157,1708722632891,-500.0,0.00028442,2]
[314998159,1708722632901,-500.0,0.00028442,2]
[314998161,1708722632910,-500.0,0.00028442,2]
[314998163,1708722632918,-500.0,0.00028442,2]
[314998165,1708722632927,-500.0,0.00028442,2]
[314998167,1708722632936,-500.0,0.00028442,2]
[314998169,1708722632946,-500.0,0.00028442,2]
[314998171,1708722632955,-500.0,0.00028442,2]
[314998173,1708722632964,-500.0,0.00028442,2]
[314998175,1708722632973,-500.0,0.00028442,2]
[314998177,1708722632982,-500.0,0.00028442,2]
[314998179,1708722632992,-500.0,0.00028442,2]
[314998181,1708722633000,-500.0,0.00028447,2]
[314998183,1708722633010,-500.0,0.00028447,2]
[314998185,1708722633019,-500.0,0.00028447,2]
[314998187,1708722633033,-500.0,0.00028447,2]
[314998189,1708722633042,-500.0,0.00028447,2]
[314998191,1708722633051,-500.0,0.00028447,2]
[314998193,1708722633060,-2657.0,0.000285,2]
[314998195,1708722633070,-500.0,0.00028579,2]
[314998197,1708722633079,-500.0,0.00028579,2]
[314998198,1708722633088,-500.0,0.00028579,2]
[314998199,1708722633097,-500.0,0.00028579,2]
[314998200,1708722633107,-500.0,0.00028579,2]
[314998201,1708722633117,-500.0,0.00028579,2]
[314998202,1708722633126,-500.0,0.00028579,2]
[314998203,1708722633135,-500.0,0.00028579,2]
[314998204,1708722633144,-500.0,0.00028579,2]
[314998205,1708722633153,-500.0,0.00028579,2]
[314998206,1708722633162,-500.0,0.00028579,2]
[314998207,1708722633171,-500.0,0.00028579,2]
[314998208,1708722633180,-500.0,0.00028579,2]
[314998209,1708722633189,-500.0,0.00028579,2]
[314998210,1708722633198,-500.0,0.00028584,2]
[314998211,1708722633208,-500.0,0.00028584,2]
[314998212,1708722633217,-500.0,0.00028584,2]
[314998213,1708722633226,-500.0,0.00028584,2]
[314998214,1708722633236,-500.0,0.00028584,2]
[314998215,1708722633245,-14129.0,0.000286,2]
[314998216,1708722633254,-500.0,0.00028716,2]
[314998217,1708722633264,-500.0,0.00028716,2]
[314998218,1708722633273,-500.0,0.00028716,2]
[314998219,1708722633282,-500.0,0.00028716,2]
[314998220,1708722633291,-500.0,0.00028716,2]
[314998221,1708722633300,-500.0,0.00028716,2]
[314998222,1708722633310,-500.0,0.00028716,2]
[314998223,1708722633320,-500.0,0.00028716,2]
[314998224,1708722633329,-500.0,0.00028716,2]
[314998225,1708722633338,-500.0,0.00028716,2]
[314998226,1708722633347,-500.0,0.00028716,2]
[314998227,1708722633356,-500.0,0.00028716,2]
[314998228,1708722633366,-500.0,0.00028716,2]
[314998229,1708722633375,-500.0,0.00028716,2]
[314998230,1708722633384,-500.0,0.00028721,2]
[314998231,1708722633393,-500.0,0.00028721,2]
[314998232,1708722633402,-500.0,0.00028721,2]
[314998233,1708722633411,-500.0,0.00028721,2]
[314998234,1708722633420,-500.0,0.00028721,2]
[314998235,1708722633429,-500.0,0.00028729,2]
[314998236,1708722633438,-206.29928259,0.00028756,2]
[314998237,1708722633447,-232.86,0.00028844,2]
[314998238,1708722633456,-500.0,0.00028853,2]
[314998239,1708722633465,-500.0,0.00028853,2]
[314998240,1708722633482,-500.0,0.00028853,2]
[314998241,1708722633491,-500.0,0.00028853,2]
[314998242,1708722633500,-500.0,0.00028853,2]
[314998243,1708722633509,-500.0,0.00028853,2]
[314998244,1708722633519,-500.0,0.00028853,2]
[314998245,1708722633528,-500.0,0.00028853,2]
[314998246,1708722633538,-500.0,0.00028853,2]
[314998247,1708722633547,-500.0,0.00028853,2]
[314998248,1708722633556,-500.0,0.00028853,2]
[314998249,1708722633565,-500.0,0.00028853,2]
[314998250,1708722633575,-500.0,0.00028853,2]
[314998251,1708722633585,-500.0,0.00028853,2]
[314998252,1708722633595,-500.0,0.00028858,2]
[314998253,1708722633604,-500.0,0.00028858,2]
[314998254,1708722633614,-500.0,0.00028858,2]
[314998255,1708722633625,-500.0,0.00028858,2]
[314998256,1708722633634,-500.0,0.00028858,2]
[314998257,1708722633643,-1449.9,0.00028871,2]
[314998258,1708722633652,-444.16,0.0002895,2]
[314998259,1708722633662,-500.0,0.0002899,2]
[314998260,1708722633672,-500.0,0.0002899,2]
[314998261,1708722633681,-500.0,0.0002899,2]
[314998262,1708722633690,-582.6,0.0002899,2]
[314998263,1708722633699,-500.0,0.0002899,2]
[314998264,1708722633708,-500.0,0.0002899,2]
[314998265,1708722633717,-500.0,0.0002899,2]
[314998266,1708722633727,-500.0,0.0002899,2]
[314998267,1708722633738,-500.0,0.0002899,2]
[314998268,1708722633749,-500.0,0.0002899,2]
[314998269,1708722633758,-500.0,0.0002899,2]
[314998270,1708722633768,-349.25,0.0002899,2]
[314998271,1708722633779,-500.0,0.0002899,2]
[314998272,1708722633788,-500.0,0.0002899,2]
[314998273,1708722633797,-163.75,0.00028995,2]
[314998274,1708722633806,-481.30001316,0.00028995,2]
[314998275,1708722633815,-500.0,0.00028995,2]
[314998276,1708722633824,-500.0,0.00028995,2]
[314998277,1708722633834,-500.0,0.00028995,2]
[314998278,1708722633843,-1919.19173,0.00029,2]
[314998279,1708722633853,-850.0,0.00029,3]
[314998280,1708722633862,-352.35,0.00029127,2]
[314998281,1708722633873,-188.55,0.00029127,2]
[314998282,1708722633883,-500.0,0.00029127,2]
[314998283,1708722633897,-500.0,0.00029127,2]
[314998284,1708722633908,-558.9,0.00029127,2]
[314998285,1708722633917,-500.0,0.00029127,2]
[314998286,1708722633926,-386.75,0.00029127,2]
[314998287,1708722633935,-500.0,0.00029127,2]
[314998288,1708722633944,-500.0,0.00029127,2]
[314998289,1708722633954,-500.0,0.00029127,2]
[314998290,1708722633963,-500.0,0.00029127,2]
[314998291,1708722633972,-469.68,0.00029127,2]
[314998292,1708722633981,-500.0,0.00029132,2]
[314998293,1708722633990,-500.0,0.00029132,2]
[314998294,1708722633999,-500.0,0.00029132,2]
[314998295,1708722634008,-206.29928259,0.00029171,2]
[314998296,1708722634021,-418.9,0.00029264,2]
[314998297,1708722634034,-500.0,0.00029264,2]
[314998298,1708722634045,-500.0,0.00029264,2]
[314998299,1708722634057,-500.0,0.00029264,2]
[314998300,1708722634070,-490.20237879,0.00029264,2]
[314998301,1708722634082,-500.0,0.00029264,2]
[314998302,1708722634094,-500.0,0.00029264,2]
[314998303,1708722634106,-500.0,0.00029269,2]
[314998304,1708722634118,-171.2,0.00029269,2]
[314998305,1708722634129,-500.0,0.00029269,2]
[314998306,1708722634141,-500.0,0.00029314,2]
[314998307,1708722634150,-500.0,0.00029314,2]
[314998308,1708722634160,-500.0,0.00029314,2]
[314998309,1708722634172,-500.0,0.00029314,2]
[314998310,1708722634183,-500.0,0.00029314,2]
[314998311,1708722634195,-500.0,0.00029314,2]
[314998312,1708722634206,-500.0,0.00029314,2]
[314998313,1708722634217,-500.0,0.00029314,2]
[314998314,1708722634227,-500.0,0.00029314,2]
[314998315,1708722634238,-500.0,0.00029314,2]
[314998316,1708722634249,-500.0,0.00029314,2]
[314998317,1708722634261,-500.0,0.00029314,2]
[314998318,1708722634273,-500.0,0.00029314,2]
[314998319,1708722634284,-374.70000001,0.00029314,2]
[314998320,1708722634295,-191.87306057,0.00029314,2]
[314998321,1708722634305,-511.72733299,0.00029314,2]
[314998322,1708722634318,-500.0,0.00029314,2]
[314998323,1708722634329,-914.7,0.00029314,2]
[314998324,1708722634340,-500.0,0.00029314,2]
[314998325,1708722634350,-500.0,0.00029314,2]
[314998326,1708722634361,-500.0,0.00029314,2]
[314998327,1708722634370,-500.0,0.00029314,2]
[314998328,1708722634380,-500.0,0.00029314,2]
[314998329,1708722634391,-500.0,0.00029314,2]
[314998330,1708722634401,-500.0,0.00029314,2]
[314998331,1708722634412,-500.0,0.00029401,2]
[314998332,1708722634422,-500.0,0.00029401,2]
[314998333,1708722634432,-500.0,0.00029401,2]
[314998334,1708722634444,-496.64,0.00029401,2]
[314998335,1708722634454,-473.1,0.00029401,2]
[314998336,1708722634464,-500.0,0.00029406,2]
[314998337,1708722634474,-500.0,0.00029406,2]
[314998338,1708722634484,-500.0,0.00029451,2]
[314998339,1708722634494,-500.0,0.00029451,2]
[314998340,1708722634504,-500.0,0.00029451,2]
[314998341,1708722634516,-500.0,0.00029451,2]
[314998342,1708722634528,-500.0,0.00029451,2]
[314998343,1708722634540,-500.0,0.00029451,2]
[314998344,1708722634551,-500.0,0.00029451,2]
[314998345,1708722634562,-914.7,0.00029451,2]
[314998346,1708722634572,-500.0,0.00029451,2]
[314998347,1708722634582,-500.0,0.00029451,2]
[314998348,1708722634592,-500.0,0.00029451,2]
[314998349,1708722634602,-500.0,0.00029451,2]
[314998350,1708722634614,-500.0,0.00029451,2]
[314998351,1708722634625,-475.0,0.00029451,2]
[314998352,1708722634637,-663.53172621,0.0002949,2]
[314998353,1708722634648,-438.59060177,0.000295,3]
[314998354,1708722634659,-500.0,0.00029538,2]
[314998355,1708722634670,-500.0,0.00029538,2]
[314998356,1708722634682,-500.0,0.00029538,2]
[314998357,1708722634693,-500.0,0.00029543,2]
[314998358,1708722634704,-500.0,0.00029543,2]
[314998359,1708722634715,-206.29928259,0.00029585,2]
[314998360,1708722634728,-500.0,0.00029588,2]
[314998361,1708722634740,-500.0,0.00029588,2]
[314998362,1708722634750,-290.88,0.00029588,2]
[314998363,1708722634761,-500.0,0.00029588,2]
[314998364,1708722634774,-500.0,0.00029588,2]
[314998365,1708722634785,-500.0,0.00029588,2]
[314998366,1708722634795,-500.0,0.00029588,2]
[314998367,1708722634808,-914.7,0.00029588,2]
[314998368,1708722634820,-500.0,0.00029588,2]
[314998369,1708722634830,-500.0,0.00029588,2]
[314998370,1708722634841,-500.0,0.00029588,2]
[314998371,1708722634852,-500.0,0.00029588,2]
[314998372,1708722634862,-500.0,0.00029588,2]
[314998373,1708722634874,-500.0,0.00029675,2]
[314998374,1708722634885,-500.0,0.00029675,2]
[314998375,1708722634895,-500.0,0.00029675,2]
[314998376,1708722634906,-500.0,0.0002968,2]
[314998377,1708722634917,-500.0,0.0002968,2]
[314998378,1708722634928,-504.00564348,0.00029725,2]
[314998379,1708722634939,-500.0,0.00029725,2]
[314998380,1708722634950,-500.0,0.00029725,2]